[Event "*** Titled Tuesday Blitz"]
[Site "Chess.com"]
[Date "2021.03.30"]
[Round "7"]
[White "chessdjw"]
[Black "FoggyMorning"]
[Result "1-0"]
[WhiteElo "2774"]
[BlackElo "2597"]
[TimeControl "180+1"]
[EndTime "11:18:24 PDT"]
[Termination "chessdjw won on time"]

1. e4 {[%clk 0:03:00.9]} 1... e6 {[%clk 0:02:55.8]} 2. d4 {[%clk 0:03:00.7]}
2... d5 {[%clk 0:02:56.7]} 3. Nc3 {[%clk 0:03:01.1]} 3... Bb4 {[%clk 0:02:56.2]}
4. e5 {[%clk 0:03:01.5]} 4... c5 {[%clk 0:02:56.7]} 5. a3 {[%clk 0:03:01.5]}
5... Bxc3+ {[%clk 0:02:57.3]} 6. bxc3 {[%clk 0:03:02.4]} 6... Qa5 {[%clk
0:02:57.9]} 7. Bd2 {[%clk 0:03:02.7]} 7... Qa4 {[%clk 0:02:58.6]} 8. Qg4 {[%clk
0:03:00.8]} 8... Kf8 {[%clk 0:02:59]} 9. h4 {[%clk 0:02:53.5]} 9... Ne7 {[%clk
0:02:55.6]} 10. h5 {[%clk 0:02:47.4]} 10... h6 {[%clk 0:02:55.6]} 11. Qf4 {[%clk
0:02:25.5]} 11... b6 {[%clk 0:02:43.7]} 12. Rh3 {[%clk 0:02:20.9]} 12... Ba6
{[%clk 0:01:50.2]} 13. Rf3 {[%clk 0:02:19.9]} 13... Qe8 {[%clk 0:01:50.6]} 14.
Bxa6 {[%clk 0:02:10.6]} 14... Nxa6 {[%clk 0:01:51.5]} 15. Ne2 {[%clk 0:02:06]}
15... Nf5 {[%clk 0:01:27.8]} 16. Kd1 {[%clk 0:01:48.9]} 16... Rc8 {[%clk
0:00:51.3]} 17. g4 {[%clk 0:01:47.8]} 17... Ne7 {[%clk 0:00:47.1]} 18. a4 {[%clk
0:01:47.7]} 18... Kg8 {[%clk 0:00:44.1]} 19. Ng3 {[%clk 0:01:39.3]} 19... cxd4
{[%clk 0:00:37.8]} 20. cxd4 {[%clk 0:01:37.8]} 20... Rc4 {[%clk 0:00:38.2]} 21.
a5 {[%clk 0:01:01.4]} 21... b5 {[%clk 0:00:29.3]} 22. c3 {[%clk 0:00:54.8]}
22... Nc5 {[%clk 0:00:27.1]} 23. Ke2 {[%clk 0:00:46.7]} 23... a6 {[%clk
0:00:24]} 24. g5 {[%clk 0:00:41.3]} 24... hxg5 {[%clk 0:00:22.3]} 25. Qxg5
{[%clk 0:00:42.2]} 25... Rh7 {[%clk 0:00:15.7]} 26. Rg1 {[%clk 0:00:37]} 26...
Ne4 {[%clk 0:00:14]} 27. Nxe4 {[%clk 0:00:33.1]} 27... dxe4 {[%clk 0:00:14.9]}
28. Rf4 {[%clk 0:00:23.4]} 28... Nd5 {[%clk 0:00:05.6]} 29. Rfg4 {[%clk
0:00:19.2]} 29... Qf8 {[%clk 0:00:06.1]} 30. h6 {[%clk 0:00:18.3]} 30... g6
{[%clk 0:00:03.9]} 31. R1g3 {[%clk 0:00:13.2]} 31... e3 {[%clk 0:00:03.2]} 32.
Rxe3 {[%clk 0:00:10]} 32... Nxe3 {[%clk 0:00:02.1]} 33. Qxe3 {[%clk 0:00:10.7]}
33... Qe7 {[%clk 0:00:01.9]} 34. Qg3 {[%clk 0:00:10.4]} 34... Rc7 {[%clk
0:00:02]} 35. Bg5 {[%clk 0:00:09.3]} 35... Qd7 {[%clk 0:00:01.4]} 36. Bf6 {[%clk
0:00:09.4]} 36... Qc6 {[%clk 0:00:01]} 37. Kd2 {[%clk 0:00:08]} 1-0

[Event "*** Titled Tuesday Blitz"]
[Site "Chess.com"]
[Date "2021.03.30"]
[Round "7"]
[White "dpruess"]
[Black "londonkid"]
[Result "1-0"]
[WhiteElo "2364"]
[BlackElo "2493"]
[TimeControl "180+1"]
[EndTime "11:18:24 PDT"]
[Termination "dpruess won by resignation"]

1. e4 {[%clk 0:03:00.9]} 1... e6 {[%clk 0:02:59.8]} 2. d4 {[%clk 0:03:00.3]}
2... d5 {[%clk 0:02:59.9]} 3. Nc3 {[%clk 0:03:00.6]} 3... Nf6 {[%clk 0:02:59.8]}
4. Bg5 {[%clk 0:02:59]} 4... dxe4 {[%clk 0:02:59.9]} 5. Nxe4 {[%clk 0:02:59.9]}
5... Nbd7 {[%clk 0:03:00.3]} 6. Nxf6+ {[%clk 0:02:52.2]} 6... Nxf6 {[%clk
0:02:59.7]} 7. Nf3 {[%clk 0:02:52.6]} 7... Be7 {[%clk 0:02:59.7]} 8. Bd3 {[%clk
0:02:48.5]} 8... b6 {[%clk 0:02:52.6]} 9. Qe2 {[%clk 0:02:34.8]} 9... Bb7 {[%clk
0:02:52.4]} 10. O-O-O {[%clk 0:02:34.1]} 10... O-O {[%clk 0:02:50.5]} 11. Kb1
{[%clk 0:02:26.6]} 11... c5 {[%clk 0:02:45.5]} 12. Rhe1 {[%clk 0:01:48.2]} 12...
Qc7 {[%clk 0:02:37.8]} 13. h4 {[%clk 0:01:34]} 13... Rfd8 {[%clk 0:02:11.7]} 14.
dxc5 {[%clk 0:01:31.8]} 14... bxc5 {[%clk 0:02:10.6]} 15. Ne5 {[%clk 0:01:28.3]}
15... Qb6 {[%clk 0:01:50.8]} 16. g4 {[%clk 0:00:41.3]} 16... Rab8 {[%clk
0:01:41.4]} 17. Nc4 {[%clk 0:00:34.2]} 17... Qc7 {[%clk 0:01:36.1]} 18. Bd2
{[%clk 0:00:25.6]} 18... Bd5 {[%clk 0:01:22.1]} 19. Ba5 {[%clk 0:00:22.8]} 19...
Qb7 {[%clk 0:01:17.1]} 20. Bxd8 {[%clk 0:00:20.2]} 20... Bxc4 {[%clk 0:01:16.7]}
21. b3 {[%clk 0:00:19.3]} 21... Bxd3 {[%clk 0:01:05.8]} 22. Qxd3 {[%clk
0:00:20.2]} 22... Bf8 {[%clk 0:00:42.1]} 23. Ba5 {[%clk 0:00:17.6]} 23... Nd5
{[%clk 0:00:39]} 24. Qc4 {[%clk 0:00:15.8]} 24... g6 {[%clk 0:00:33.7]} 25. f4
{[%clk 0:00:15.8]} 25... Bg7 {[%clk 0:00:32.9]} 26. f5 {[%clk 0:00:16]} 26...
Qb5 {[%clk 0:00:15]} 27. Qxb5 {[%clk 0:00:14.6]} 27... Rxb5 {[%clk 0:00:15.9]}
28. fxe6 {[%clk 0:00:14.7]} 28... fxe6 {[%clk 0:00:09.4]} 29. Rxe6 {[%clk
0:00:14.7]} 29... Nc3+ {[%clk 0:00:09.3]} 30. Bxc3 {[%clk 0:00:14]} 30... Bxc3
{[%clk 0:00:10]} 31. Re7 {[%clk 0:00:13.7]} 31... Kf8 {[%clk 0:00:08.5]} 32.
Rxa7 {[%clk 0:00:13]} 32... Rb8 {[%clk 0:00:08.6]} 33. Rxh7 {[%clk 0:00:12.5]}
33... Bd4 {[%clk 0:00:09.1]} 34. h5 {[%clk 0:00:12.5]} 34... gxh5 {[%clk
0:00:09.4]} 35. gxh5 {[%clk 0:00:13.2]} 35... Re8 {[%clk 0:00:09.6]} 36. a3
{[%clk 0:00:12.8]} 36... Ra8 {[%clk 0:00:08.9]} 37. Ka2 {[%clk 0:00:12.9]} 37...
Re8 {[%clk 0:00:07.3]} 38. b4 {[%clk 0:00:12.5]} 38... Kg8 {[%clk 0:00:07.7]}
39. Rd7 {[%clk 0:00:11.4]} 39... Re2 {[%clk 0:00:08.1]} 40. Kb3 {[%clk
0:00:11.3]} 40... Re3+ {[%clk 0:00:08.2]} 41. Ka2 {[%clk 0:00:11]} 41... Re2
{[%clk 0:00:08.2]} 42. R7xd4 {[%clk 0:00:10.5]} 42... cxd4 {[%clk 0:00:08.4]}
43. Kb3 {[%clk 0:00:09.9]} 43... Rxc2 {[%clk 0:00:09.3]} 44. Kxc2 {[%clk
0:00:09.5]} 44... d3+ {[%clk 0:00:09.3]} 45. Kxd3 {[%clk 0:00:10.4]} 1-0

[Event "*** Titled Tuesday Blitz"]
[Site "Chess.com"]
[Date "2021.03.30"]
[Round "7"]
[White "Vandros57"]
[Black "OlifantCZ"]
[Result "1-0"]
[WhiteElo "2203"]
[BlackElo "2277"]
[TimeControl "180+1"]
[EndTime "11:18:24 PDT"]
[Termination "Vandros57 won by resignation"]

1. d4 {[%clk 0:03:00.9]} 1... Nf6 {[%clk 0:02:55.4]} 2. c4 {[%clk 0:02:59.1]}
2... g6 {[%clk 0:02:55.4]} 3. Nc3 {[%clk 0:02:57.8]} 3... Bg7 {[%clk 0:02:56]}
4. e4 {[%clk 0:02:56.6]} 4... O-O {[%clk 0:02:55.3]} 5. f3 {[%clk 0:02:56]} 5...
c5 {[%clk 0:02:54.4]} 6. dxc5 {[%clk 0:02:48]} 6... Na6 {[%clk 0:02:45.9]} 7.
Be3 {[%clk 0:02:46.4]} 7... Qa5 {[%clk 0:02:45.3]} 8. Qa4 {[%clk 0:02:40.7]}
8... Qxa4 {[%clk 0:02:26.9]} 9. Nxa4 {[%clk 0:02:39.6]} 9... Nb4 {[%clk
0:02:15.2]} 10. O-O-O {[%clk 0:02:30.7]} 10... Nxa2+ {[%clk 0:02:13.3]} 11. Kb1
{[%clk 0:02:29.6]} 11... Nb4 {[%clk 0:02:12.9]} 12. Bd3 {[%clk 0:02:17.8]} 12...
Rd8 {[%clk 0:02:03.6]} 13. Ne2 {[%clk 0:02:16.2]} 13... d6 {[%clk 0:01:56]} 14.
cxd6 {[%clk 0:02:11.7]} 14... Rxd6 {[%clk 0:01:55]} 15. Bc2 {[%clk 0:02:03.8]}
15... Rxd1+ {[%clk 0:01:48.6]} 16. Rxd1 {[%clk 0:02:02.1]} 16... Be6 {[%clk
0:01:49.2]} 17. b3 {[%clk 0:01:52.4]} 17... b6 {[%clk 0:01:46.7]} 18. Nd4 {[%clk
0:01:49.9]} 18... Bd7 {[%clk 0:01:38.3]} 19. Nc3 {[%clk 0:01:46.3]} 19... Rc8
{[%clk 0:01:13.9]} 20. Ndb5 {[%clk 0:01:32.4]} 20... Bxb5 {[%clk 0:01:08.7]} 21.
Nxb5 {[%clk 0:01:30.7]} 21... Nc6 {[%clk 0:00:54.5]} 22. Nd4 {[%clk 0:01:26.3]}
22... Nb4 {[%clk 0:00:40.2]} 23. Nb5 {[%clk 0:01:21.6]} 23... Nxc2 {[%clk
0:00:27.6]} 24. Kxc2 {[%clk 0:01:20.4]} 24... a6 {[%clk 0:00:26.7]} 25. Nc7
{[%clk 0:01:08.1]} 25... b5 {[%clk 0:00:22.2]} 26. c5 {[%clk 0:00:51.4]} 26...
Bf8 {[%clk 0:00:18.9]} 27. Nxa6 {[%clk 0:00:48.7]} 27... e6 {[%clk 0:00:17.5]}
28. Kb2 {[%clk 0:00:38.8]} 28... Rc6 {[%clk 0:00:17]} 29. Nb4 {[%clk 0:00:37]}
29... Rc8 {[%clk 0:00:16.3]} 30. Nd3 {[%clk 0:00:32.7]} 30... Nd7 {[%clk
0:00:14.9]} 31. b4 {[%clk 0:00:32.1]} 31... Bg7+ {[%clk 0:00:15.1]} 32. Kb3
{[%clk 0:00:31.5]} 32... Ra8 {[%clk 0:00:14.2]} 33. f4 {[%clk 0:00:26.8]} 33...
Nb8 {[%clk 0:00:13.6]} 34. Ne5 {[%clk 0:00:21.6]} 34... f6 {[%clk 0:00:11.8]}
35. Rd8+ {[%clk 0:00:20.3]} 35... Bf8 {[%clk 0:00:10.8]} 36. Nd7 {[%clk
0:00:16.5]} 36... Ra1 {[%clk 0:00:08.8]} 37. Rxf8+ {[%clk 0:00:14.2]} 37... Kg7
{[%clk 0:00:09.1]} 38. Rxb8 {[%clk 0:00:14.1]} 38... Rd1 {[%clk 0:00:09.7]} 39.
c6 {[%clk 0:00:13.1]} 39... Rd3+ {[%clk 0:00:09.7]} 40. Kc2 {[%clk 0:00:12]}
40... Rxe3 {[%clk 0:00:10.2]} 41. c7 {[%clk 0:00:11.9]} 41... Re2+ {[%clk
0:00:10.9]} 42. Kd3 {[%clk 0:00:11.2]} 1-0

[Event "*** Titled Tuesday Blitz"]
[Site "Chess.com"]
[Date "2021.03.30"]
[Round "7"]
[White "Piotrek1979"]
[Black "eduardoperalta"]
[Result "1-0"]
[WhiteElo "2336"]
[BlackElo "2478"]
[TimeControl "180+1"]
[EndTime "11:18:25 PDT"]
[Termination "Piotrek1979 won by resignation"]

1. Nf3 {[%clk 0:02:56.5]} 1... Nf6 {[%clk 0:02:59.1]} 2. b3 {[%clk 0:02:54.4]}
2... g6 {[%clk 0:02:59]} 3. Bb2 {[%clk 0:02:54.9]} 3... Bg7 {[%clk 0:02:59.5]}
4. e3 {[%clk 0:02:55.3]} 4... O-O {[%clk 0:02:59.9]} 5. Be2 {[%clk 0:02:55.5]}
5... d6 {[%clk 0:03:00]} 6. O-O {[%clk 0:02:55.8]} 6... e5 {[%clk 0:03:00]} 7.
d3 {[%clk 0:02:55.5]} 7... c5 {[%clk 0:02:58.2]} 8. c4 {[%clk 0:02:54.5]} 8...
Nc6 {[%clk 0:02:58]} 9. a3 {[%clk 0:02:53.5]} 9... a6 {[%clk 0:02:58.1]} 10. Qc2
{[%clk 0:02:53.2]} 10... Bf5 {[%clk 0:02:55.3]} 11. Nbd2 {[%clk 0:02:52.2]}
11... b5 {[%clk 0:02:54.6]} 12. Ne4 {[%clk 0:02:51.1]} 12... Rc8 {[%clk
0:02:52.5]} 13. Nfd2 {[%clk 0:02:48.6]} 13... h6 {[%clk 0:02:51.1]} 14. Nxf6+
{[%clk 0:02:47.5]} 14... Qxf6 {[%clk 0:02:49.6]} 15. Ne4 {[%clk 0:02:48.4]}
15... Qd8 {[%clk 0:02:49.1]} 16. Nc3 {[%clk 0:02:48]} 16... bxc4 {[%clk
0:02:46.7]} 17. bxc4 {[%clk 0:02:47.1]} 17... Be6 {[%clk 0:02:45.8]} 18. Bf3
{[%clk 0:02:45.6]} 18... f5 {[%clk 0:02:44.7]} 19. Bd5 {[%clk 0:02:45.2]} 19...
Qd7 {[%clk 0:02:43.4]} 20. Rab1 {[%clk 0:02:38.2]} 20... Kh8 {[%clk 0:02:39.9]}
21. Bxe6 {[%clk 0:02:27.1]} 21... Qxe6 {[%clk 0:02:38.8]} 22. Nd5 {[%clk
0:02:28]} 22... g5 {[%clk 0:02:30.8]} 23. Bc3 {[%clk 0:02:22.3]} 23... f4 {[%clk
0:02:30.1]} 24. f3 {[%clk 0:01:26]} 24... fxe3 {[%clk 0:02:27.9]} 25. Nxe3
{[%clk 0:01:25]} 25... Nd4 {[%clk 0:02:25.2]} 26. Bxd4 {[%clk 0:01:12.3]} 26...
cxd4 {[%clk 0:02:24.6]} 27. Ng4 {[%clk 0:01:01.3]} 27... h5 {[%clk 0:02:23.7]}
28. Nf2 {[%clk 0:01:00.2]} 28... g4 {[%clk 0:02:23.2]} 29. fxg4 {[%clk
0:00:59.8]} 29... hxg4 {[%clk 0:02:22.4]} 30. Qe2 {[%clk 0:00:56.2]} 30... Rf4
{[%clk 0:02:19.1]} 31. g3 {[%clk 0:00:52.6]} 31... Rf3 {[%clk 0:01:46.8]} 32.
Nxg4 {[%clk 0:00:51.1]} 32... Rxf1+ {[%clk 0:01:44.9]} 33. Rxf1 {[%clk
0:00:49.1]} 33... d5 {[%clk 0:01:43]} 34. cxd5 {[%clk 0:00:34.7]} 34... Qxd5
{[%clk 0:01:42.4]} 35. Nf2 {[%clk 0:00:35.1]} 35... Qb3 {[%clk 0:01:18.3]} 36.
Ne4 {[%clk 0:00:27.7]} 36... Kg8 {[%clk 0:01:14.6]} 37. Qg4 {[%clk 0:00:22]}
37... Rc6 {[%clk 0:01:09.1]} 38. Nf6+ {[%clk 0:00:17.3]} 38... Rxf6 {[%clk
0:01:00.6]} 39. Rxf6 {[%clk 0:00:18.2]} 39... Qxd3 {[%clk 0:00:59.1]} 40. Rg6
{[%clk 0:00:14.8]} 40... Qb1+ {[%clk 0:00:48.1]} 41. Kg2 {[%clk 0:00:14.4]}
41... Qb7+ {[%clk 0:00:47.8]} 42. Kh3 {[%clk 0:00:14.4]} 42... d3 {[%clk
0:00:40.6]} 43. Rd6 {[%clk 0:00:13.3]} 43... e4 {[%clk 0:00:35.7]} 44. Rd8+
{[%clk 0:00:12.4]} 44... Kh7 {[%clk 0:00:32.5]} 45. Qf5+ {[%clk 0:00:11.6]}
45... Kh6 {[%clk 0:00:21.9]} 46. Rd6+ {[%clk 0:00:12.5]} 1-0

[Event "*** Titled Tuesday Blitz"]
[Site "Chess.com"]
[Date "2021.03.30"]
[Round "7"]
[White "Zq1"]
[Black "Rozhkov_V"]
[Result "0-1"]
[WhiteElo "2518"]
[BlackElo "2384"]
[TimeControl "180+1"]
[EndTime "11:18:26 PDT"]
[Termination "Rozhkov_V won on time"]

1. d4 {[%clk 0:03:00.9]} 1... d5 {[%clk 0:02:58.1]} 2. c4 {[%clk 0:03:00.7]}
2... dxc4 {[%clk 0:02:58.1]} 3. Nf3 {[%clk 0:03:00]} 3... Nf6 {[%clk 0:02:57.7]}
4. e3 {[%clk 0:03:00.1]} 4... e6 {[%clk 0:02:57.5]} 5. Bxc4 {[%clk 0:02:59.8]}
5... a6 {[%clk 0:02:57.3]} 6. O-O {[%clk 0:02:58.9]} 6... c5 {[%clk 0:02:57.1]}
7. Bb3 {[%clk 0:02:58.6]} 7... Nbd7 {[%clk 0:02:55.3]} 8. Qe2 {[%clk 0:02:57.5]}
8... Qc7 {[%clk 0:02:51.2]} 9. Nc3 {[%clk 0:02:55.6]} 9... b5 {[%clk 0:02:50.8]}
10. d5 {[%clk 0:02:50.3]} 10... c4 {[%clk 0:02:35.2]} 11. dxe6 {[%clk
0:02:49.8]} 11... fxe6 {[%clk 0:02:34.1]} 12. Bc2 {[%clk 0:02:48]} 12... Bb7
{[%clk 0:02:33.8]} 13. e4 {[%clk 0:02:45.8]} 13... Bd6 {[%clk 0:02:26.8]} 14.
Ng5 {[%clk 0:02:22]} 14... Nc5 {[%clk 0:01:16.6]} 15. f4 {[%clk 0:02:11.9]}
15... h6 {[%clk 0:01:13.9]} 16. e5 {[%clk 0:02:10.7]} 16... hxg5 {[%clk
0:01:13.4]} 17. Bg6+ {[%clk 0:01:48.4]} 17... Ke7 {[%clk 0:01:13]} 18. exd6+
{[%clk 0:01:41.6]} 18... Qxd6 {[%clk 0:01:12.5]} 19. Be3 {[%clk 0:01:35.1]}
19... Nd3 {[%clk 0:00:55.9]} 20. Rad1 {[%clk 0:01:24.7]} 20... Rad8 {[%clk
0:00:55.4]} 21. b3 {[%clk 0:01:01.8]} 21... gxf4 {[%clk 0:00:46.8]} 22. h3
{[%clk 0:00:19.9]} 22... fxe3 {[%clk 0:00:46.3]} 23. Qxe3 {[%clk 0:00:20.1]}
23... Qc5 {[%clk 0:00:41.2]} 24. Rxd3 {[%clk 0:00:19.9]} 24... Qxe3+ {[%clk
0:00:35.4]} 25. Rxe3 {[%clk 0:00:20.1]} 25... Rd2 {[%clk 0:00:33.3]} 26. Rf2
{[%clk 0:00:17.7]} 26... Rhd8 {[%clk 0:00:33.6]} 27. bxc4 {[%clk 0:00:15.8]}
27... bxc4 {[%clk 0:00:27.6]} 28. Bf5 {[%clk 0:00:14.9]} 28... Rxf2 {[%clk
0:00:16.2]} 29. Rxe6+ {[%clk 0:00:14.4]} 29... Kf8 {[%clk 0:00:16.5]} 30. Kxf2
{[%clk 0:00:14.6]} 30... Nd5 {[%clk 0:00:11.2]} 31. Nxd5 {[%clk 0:00:11.1]}
31... Bxd5 {[%clk 0:00:11.9]} 32. Rxa6 {[%clk 0:00:09.3]} 32... Rb8 {[%clk
0:00:12.2]} 33. Ra5 {[%clk 0:00:06.3]} 33... Rb2+ {[%clk 0:00:12.4]} 34. Ke3
{[%clk 0:00:05.9]} 34... Bxg2 {[%clk 0:00:12.2]} 35. Rc5 {[%clk 0:00:05.8]}
35... Bf1 {[%clk 0:00:11.7]} 36. Kd4 {[%clk 0:00:03.2]} 36... Rxa2 {[%clk
0:00:11.3]} 37. Be6 {[%clk 0:00:03.3]} 37... Rd2+ {[%clk 0:00:10.4]} 38. Kc3
{[%clk 0:00:01.8]} 38... Rd3+ {[%clk 0:00:09.9]} 0-1

[Event "*** Titled Tuesday Blitz"]
[Site "Chess.com"]
[Date "2021.03.30"]
[Round "7"]
[White "erdni1993"]
[Black "Zmeeed63"]
[Result "1-0"]
[WhiteElo "2513"]
[BlackElo "2340"]
[TimeControl "180+1"]
[EndTime "11:18:29 PDT"]
[Termination "erdni1993 won by resignation"]

1. e4 {[%clk 0:03:00.9]} 1... c5 {[%clk 0:02:58.4]} 2. Nf3 {[%clk 0:02:58.6]}
2... Nc6 {[%clk 0:02:58.1]} 3. d4 {[%clk 0:02:59.2]} 3... cxd4 {[%clk 0:02:59]}
4. Nxd4 {[%clk 0:02:59.8]} 4... Nf6 {[%clk 0:02:59.3]} 5. Nc3 {[%clk 0:02:59.7]}
5... e5 {[%clk 0:02:59.2]} 6. Ndb5 {[%clk 0:02:59.9]} 6... d6 {[%clk 0:02:59.4]}
7. a4 {[%clk 0:02:54.3]} 7... a6 {[%clk 0:02:48.4]} 8. Na3 {[%clk 0:02:54.6]}
8... Be6 {[%clk 0:02:49.1]} 9. Bc4 {[%clk 0:02:53.2]} 9... Be7 {[%clk 0:02:49]}
10. O-O {[%clk 0:02:52.1]} 10... O-O {[%clk 0:02:48.7]} 11. f3 {[%clk
0:02:49.6]} 11... Qb6+ {[%clk 0:02:30.5]} 12. Kh1 {[%clk 0:02:49.2]} 12... Rfd8
{[%clk 0:02:25.1]} 13. Nd5 {[%clk 0:02:45.2]} 13... Bxd5 {[%clk 0:02:21.7]} 14.
Bxd5 {[%clk 0:02:45.3]} 14... Nb4 {[%clk 0:02:04.4]} 15. c4 {[%clk 0:02:24.4]}
15... Rac8 {[%clk 0:01:41.7]} 16. b3 {[%clk 0:02:12.3]} 16... Nfxd5 {[%clk
0:01:30.8]} 17. exd5 {[%clk 0:02:11.8]} 17... f5 {[%clk 0:01:23.9]} 18. Nc2
{[%clk 0:02:01.7]} 18... Bf6 {[%clk 0:00:47.4]} 19. a5 {[%clk 0:02:01]} 19...
Qc7 {[%clk 0:00:15.4]} 20. Nxb4 {[%clk 0:02:00.2]} 20... e4 {[%clk 0:00:16.3]}
21. Ra2 {[%clk 0:01:55.8]} 21... Re8 {[%clk 0:00:09.4]} 22. fxe4 {[%clk
0:01:53.9]} 22... fxe4 {[%clk 0:00:10.3]} 23. Be3 {[%clk 0:01:52.8]} 23... Bc3
{[%clk 0:00:09.4]} 24. Nc2 {[%clk 0:01:51.7]} 24... Bxa5 {[%clk 0:00:08.6]} 25.
Nd4 {[%clk 0:01:50.7]} 25... Bc3 {[%clk 0:00:06]} 26. Raf2 {[%clk 0:01:50]}
26... b5 {[%clk 0:00:04.3]} 27. Nc6 {[%clk 0:01:45.7]} 27... bxc4 {[%clk
0:00:03.7]} 28. bxc4 {[%clk 0:01:45]} 28... Qb7 {[%clk 0:00:04.3]} 29. Qh5
{[%clk 0:01:27.6]} 29... g6 {[%clk 0:00:04]} 30. Qg4 {[%clk 0:01:22.9]} 30... a5
{[%clk 0:00:03.4]} 31. h4 {[%clk 0:01:08.5]} 31... Qg7 {[%clk 0:00:02.2]} 32. h5
{[%clk 0:01:03.8]} 32... gxh5 {[%clk 0:00:01.9]} 33. Qxg7+ {[%clk 0:01:03.5]}
33... Kxg7 {[%clk 0:00:02.8]} 34. Rf7+ {[%clk 0:01:03.6]} 34... Kh8 {[%clk
0:00:02.5]} 35. Ra7 {[%clk 0:00:57.3]} 35... Ra8 {[%clk 0:00:02.6]} 36. Rff7
{[%clk 0:00:54.4]} 36... Rxa7 {[%clk 0:00:02.7]} 37. Rxa7 {[%clk 0:00:55.3]}
37... a4 {[%clk 0:00:02.2]} 38. Rxa4 {[%clk 0:00:54.8]} 38... h4 {[%clk
0:00:01.9]} 39. Ra7 {[%clk 0:00:54.1]} 39... Rg8 {[%clk 0:00:02.2]} 40. Re7
{[%clk 0:00:50.7]} 40... h3 {[%clk 0:00:01.6]} 41. gxh3 {[%clk 0:00:48.1]} 41...
Rg3 {[%clk 0:00:02.1]} 42. Rxe4 {[%clk 0:00:48.5]} 42... Rxh3+ {[%clk
0:00:02.3]} 43. Kg2 {[%clk 0:00:49.1]} 43... Rh5 {[%clk 0:00:02.6]} 44. Bd4+
{[%clk 0:00:46.4]} 44... Bxd4 {[%clk 0:00:01.9]} 45. Nxd4 {[%clk 0:00:47.3]}
45... Kg7 {[%clk 0:00:02.3]} 46. Nf3 {[%clk 0:00:46.2]} 46... Kf6 {[%clk
0:00:02.5]} 47. Re6+ {[%clk 0:00:46.4]} 47... Kf7 {[%clk 0:00:02.9]} 48. Rxd6
{[%clk 0:00:46.4]} 48... Rf5 {[%clk 0:00:02.8]} 49. Re6 {[%clk 0:00:46]} 49...
Rf4 {[%clk 0:00:03.2]} 50. Kg3 {[%clk 0:00:44.8]} 50... Rxc4 {[%clk 0:00:03.1]}
51. Ne5+ {[%clk 0:00:45.1]} 1-0

[Event "*** Titled Tuesday Blitz"]
[Site "Chess.com"]
[Date "2021.03.30"]
[Round "7"]
[White "Jumbo"]
[Black "Smirnov_Pavel"]
[Result "0-1"]
[WhiteElo "2801"]
[BlackElo "2902"]
[TimeControl "180+1"]
[EndTime "11:18:30 PDT"]
[Termination "Smirnov_Pavel won on time"]

1. d4 {[%clk 0:03:00.9]} 1... Nf6 {[%clk 0:02:59]} 2. c4 {[%clk 0:03:01.2]} 2...
e6 {[%clk 0:02:59.1]} 3. Nf3 {[%clk 0:03:01.3]} 3... d5 {[%clk 0:02:59.1]} 4. g3
{[%clk 0:03:01]} 4... Be7 {[%clk 0:02:58.9]} 5. Nc3 {[%clk 0:03:00.9]} 5... O-O
{[%clk 0:02:57.4]} 6. Bg2 {[%clk 0:03:00.5]} 6... c6 {[%clk 0:02:57.7]} 7. Qd3
{[%clk 0:02:58.8]} 7... Nbd7 {[%clk 0:02:56.7]} 8. O-O {[%clk 0:02:58.4]} 8...
b6 {[%clk 0:02:56.6]} 9. Rd1 {[%clk 0:02:56.6]} 9... Ba6 {[%clk 0:02:55.7]} 10.
b3 {[%clk 0:02:57.1]} 10... Qc8 {[%clk 0:02:53.7]} 11. e4 {[%clk 0:02:56]} 11...
dxc4 {[%clk 0:01:52.8]} 12. bxc4 {[%clk 0:02:54.5]} 12... b5 {[%clk 0:01:49]}
13. Qc2 {[%clk 0:01:23.8]} 13... bxc4 {[%clk 0:01:43]} 14. Bf4 {[%clk
0:01:24.1]} 14... Nh5 {[%clk 0:01:35.5]} 15. Be3 {[%clk 0:01:22.6]} 15... Nhf6
{[%clk 0:01:33.1]} 16. h3 {[%clk 0:01:23]} 16... Rb8 {[%clk 0:01:23.8]} 17. Bf1
{[%clk 0:01:14.2]} 17... Rd8 {[%clk 0:01:19.9]} 18. Na4 {[%clk 0:00:59.3]} 18...
Bb5 {[%clk 0:01:05.6]} 19. Nb2 {[%clk 0:00:52.8]} 19... c5 {[%clk 0:00:58.6]}
20. Nxc4 {[%clk 0:00:46.9]} 20... cxd4 {[%clk 0:00:54.7]} 21. Nxd4 {[%clk
0:00:47.8]} 21... Bxc4 {[%clk 0:00:31.6]} 22. Qxc4 {[%clk 0:00:48.7]} 22... Qxc4
{[%clk 0:00:31.5]} 23. Bxc4 {[%clk 0:00:49.2]} 23... Ne5 {[%clk 0:00:32.4]} 24.
Bf1 {[%clk 0:00:43.9]} 24... Nxe4 {[%clk 0:00:31.5]} 25. f4 {[%clk 0:00:36.8]}
25... Rxd4 {[%clk 0:00:20.9]} 26. Bxd4 {[%clk 0:00:22]} 26... Nf3+ {[%clk
0:00:20.9]} 27. Kg2 {[%clk 0:00:22.6]} 27... Nxd4 {[%clk 0:00:20.9]} 28. Rxd4
{[%clk 0:00:23.2]} 28... Bf6 {[%clk 0:00:21.2]} 29. Rxe4 {[%clk 0:00:09.9]}
29... Bxa1 {[%clk 0:00:19.9]} 30. Ra4 {[%clk 0:00:10.4]} 30... g6 {[%clk
0:00:16]} 31. Rxa7 {[%clk 0:00:09.8]} 31... Bd4 {[%clk 0:00:15.9]} 32. Ra4
{[%clk 0:00:07.1]} 32... Rb2+ {[%clk 0:00:15.5]} 33. Kf3 {[%clk 0:00:07]} 33...
Bc5 {[%clk 0:00:13.7]} 34. Be2 {[%clk 0:00:06.7]} 34... f5 {[%clk 0:00:09.4]}
35. Ra6 {[%clk 0:00:04.3]} 35... Bb6 {[%clk 0:00:08.3]} 0-1